[Event "Final GP Rapid TOP 16 2019"]
[Site "Khanty-Mansijsk"]
[Date "2019.12.01"]
[Round "3.1"]
[White "Shimanov, Aleksandr"]
[Black "Ponkratov, Pavel"]
[Result "1-0"]
[ECO "E61"]
[WhiteElo "2587"]
[BlackElo "2632"]
[Annotator "ChessBase"]
[PlyCount "69"]
[EventDate "2019.12.01"]
[EventType "tourn"]
[EventCountry "RUS"]
[SourceTitle "playchess.com"]
[Source "ChessBase"]
[SourceQuality "1"]
[TimeControl "900+10"]

1. c4 {[%emt 0:00:00]} Nf6 {[%emt 0:00:00]} 2. g3 {[%emt 0:00:13]} g6 {[%emt 0:00:23]} 3. Bg2 {[%emt 0:00:04]} Bg7 {[%emt 0:00:01]} 4. Nc3 {[%emt 0:00:51]} O-O {[%emt 0:00:03]} 5. d4 {[%emt 0:00:08]} Nc6 {[%emt 0:00:02]} 6. e3 {[%emt 0:00:07]} e5 {[%emt 0:00:45]} 7. d5 {[%emt 0:00:10]} Na5 {[%emt 0:01:09]} 8. b3 {[%emt 0:01:02]} c5 {[%emt 0:00:22]} 9. d6 {[%emt 0:00:40]} Rb8 {[%emt 0:00:10]} 10. Bb2 {[%emt 0:02:03]} b6 {[%emt 0:00:14]} 11. Nf3 {[%emt 0:00:28]} Bb7 {[%emt 0:01:53]} 12. O-O {[%emt 0:00:05]} Nc6 {[%emt 0:00:27]} 13. Qe2 {[%emt 0:01:37]} Ne8 {[%emt 0:00:27]} 14. Rad1 {[%emt 0:00:33]} f5 {[%emt 0:00:01]} 15. h4 {[%emt 0:00:32]} e4 {[%emt 0:01:38]} 16. Ng5 {[%emt 0:00:03]} h6 {[%emt 0:00:02]} 17. Nh3 {[%emt 0:01:32]} Ne5 {[%emt 0:00:01]} 18. Nf4 {[%emt 0:00:56]} Nf6 {[%emt 0:01:41]} 19. Ncd5 {[%emt 0:00:58]} Nxd5 {[%emt 0:00:01]} 20. Nxd5 {[%emt 0:00:13]} Bxd5 {[%emt 0:01:08]} 21. Rxd5 {[%emt 0:00:01]} Qe8 {[%emt 0:00:05]} 22. h5 {[%emt 0:01:31]} gxh5 {[%emt 0:01:03]} 23. Bxe5 {[%emt 0:00:10]} Bxe5 {[%emt 0:00:02]} 24. Bh3 {[%emt 0:00:15]} Rf6 {[%emt 0:00:52]} 25. Rfd1 {[%emt 0:00:13]} Kh8 {[%emt 0:00:06]} 26. Kg2 {[%emt 0:00:50]} h4 {[%emt 0:01:05]} 27. gxh4 {[%emt 0:00:09]} f4 {[%emt 0:00:36]} 28. Kh1 {[%emt 0:00:55]} fxe3 {[%emt 0:00:27]} 29. fxe3 {[%emt 0:00:10]} Rf3 {[%emt 0:00:47]} 30. Bg4 {[%emt 0:00:26]} Qd8 {[%emt 0:01:02]} 31. Rxe5 {[%emt 0:00:19]} Qf6 {[%emt 0:00:49]} 32. Bxf3 {[%emt 0:00:20]} Qxe5 {[%emt 0:00:18]} 33. Bg2 {[%emt 0:00:04]} Rg8 {[%emt 0:00:02]} 34. Qf2 {[%emt 0:00:20]} Rg4 {[%emt 0:00:06]} 35. Rf1 {[%emt 0:00:11]} 1-0

[Event "Final GP Rapid TOP 16 2019"]
[Site "Khanty-Mansijsk"]
[Date "2019.12.01"]
[Round "3.2"]
[White "Tsydypov, Zhamsaran"]
[Black "Potapov, Pavel"]
[Result "1-0"]
[ECO "E19"]
[WhiteElo "2553"]
[BlackElo "2482"]
[Annotator "ChessBase"]
[PlyCount "71"]
[EventDate "2019.12.01"]
[EventType "tourn"]
[EventCountry "RUS"]
[SourceTitle "playchess.com"]
[Source "ChessBase"]
[SourceQuality "1"]
[TimeControl "900+10"]

1. d4 {[%emt 0:00:00]} Nf6 {[%emt 0:00:00]} 2. c4 {[%emt 0:00:08]} e6 {[%emt 0:00:00]} 3. Nf3 {[%emt 0:00:04]} b6 {[%emt 0:00:00]} 4. g3 {[%emt 0:01:32]} Bb7 {[%emt 0:00:00]} 5. Bg2 {[%emt 0:00:04]} Be7 {[%emt 0:00:02]} 6. O-O {[%emt 0:00:13]} O-O {[%emt 0:00:05]} 7. Nc3 {[%emt 0:00:12]} Ne4 {[%emt 0:00:44]} 8. Qc2 {[%emt 0:00:31]} Nxc3 {[%emt 0:00:54]} 9. Qxc3 {[%emt 0:01:33]} d6 {[%emt 0:01:27]} 10. Qc2 {[%emt 0:00:27]} Qc8 {[%emt 0:00:54]} 11. e4 {[%emt 0:00:31]} Nd7 {[%emt 0:00:31]} 12. d5 {[%emt 0:00:29]} e5 {[%emt 0:00:21]} 13. Be3 {[%emt 0:02:09]} a5 {[%emt 0:00:07]} 14. b3 {[%emt 0:00:06]} Nc5 {[%emt 0:02:40]} 15. a3 {[%emt 0:00:37]} Qg4 {[%emt 0:00:39]} 16. Nd2 {[%emt 0:00:37]} h6 {[%emt 0:03:09]} 17. b4 {[%emt 0:01:50]} Nd7 {[%emt 0:00:05]} 18. Nb3 {[%emt 0:01:07]} a4 {[%emt 0:01:07]} 19. Nc1 {[%emt 0:00:07]} Bg5 {[%emt 0:00:41]} 20. f4 {[%emt 0:00:29]} exf4 {[%emt 0:00:07]} 21. gxf4 {[%emt 0:00:02]} Bh4 {[%emt 0:00:15]} 22. Kh1 {[%emt 0:01:00]} f5 {[%emt 0:00:29]} 23. Rg1 {[%emt 0:00:33]} Qh5 {[%emt 0:00:02]} 24. Qe2 {[%emt 0:00:59]} Qxe2 {[%emt 0:00:08]} 25. Nxe2 {[%emt 0:00:01]} fxe4 {[%emt 0:00:26]} 26. Bh3 {[%emt 0:00:15]} Rad8 {[%emt 0:00:27]} 27. Rad1 {[%emt 0:00:54]} Bf6 {[%emt 0:01:23]} 28. Ng3 {[%emt 0:00:02]} Kh8 {[%emt 0:00:07]} 29. Be6 {[%emt 0:00:30]} Rfe8 {[%emt 0:00:31]} 30. Nh5 {[%emt 0:00:15]} Re7 {[%emt 0:00:23]} 31. Rg2 {[%emt 0:01:45]} c6 {[%emt 0:00:32]} 32. dxc6 {[%emt 0:00:45]} Bxc6 {[%emt 0:00:03]} 33. Rxd6 {[%emt 0:00:03]} Rde8 {[%emt 0:00:45]} 34. Bf5 {[%emt 0:00:14]} Nb8 {[%emt 0:00:43]} 35. Nxf6 {[%emt 0:00:03]} gxf6 {[%emt 0:00:08]} 36. Rxf6 {[%emt 0:00:07]} 1-0

[Event "Final GP Rapid TOP 16 2019"]
[Site "Khanty-Mansijsk"]
[Date "2019.12.01"]
[Round "3.4"]
[White "Maltsevskaya, Aleksandra"]
[Black "Bocharov, Dmitry"]
[Result "0-1"]
[ECO "B40"]
[WhiteElo "2318"]
[BlackElo "2524"]
[Annotator "ChessBase"]
[PlyCount "72"]
[EventDate "2019.12.01"]
[EventType "tourn"]
[EventCountry "RUS"]
[SourceTitle "playchess.com"]
[Source "ChessBase"]
[SourceQuality "1"]
[TimeControl "900+10"]

1. e4 {[%emt 0:00:00]} c5 {[%emt 0:00:00]} 2. Nf3 {[%emt 0:00:00]} e6 {[%emt 0:00:00]} 3. g3 {[%emt 0:00:05]} Nc6 {[%emt 0:00:00]} 4. Bg2 {[%emt 0:00:04]} Nf6 {[%emt 0:00:04]} 5. d3 {[%emt 0:00:04]} e5 {[%emt 0:00:35]} 6. O-O {[%emt 0:00:24]} Be7 {[%emt 0:00:03]} 7. Nc3 {[%emt 0:02:08]} d6 {[%emt 0:00:11]} 8. Nd5 {[%emt 0:00:28]} O-O {[%emt 0:00:37]} 9. c4 {[%emt 0:01:38]} a6 {[%emt 0:00:54]} 10. a3 {[%emt 0:03:33]} b5 {[%emt 0:00:26]} 11. b4 {[%emt 0:01:52]} cxb4 {[%emt 0:02:07]} 12. axb4 {[%emt 0:00:04]} Rb8 {[%emt 0:00:31]} 13. Nxf6+ {[%emt 0:02:22]} Bxf6 {[%emt 0:00:03]} 14. Bd2 {[%emt 0:00:41]} bxc4 {[%emt 0:01:59]} 15. dxc4 {[%emt 0:00:24]} Nxb4 {[%emt 0:01:05]} 16. Qa4 {[%emt 0:02:18]} Nd3 {[%emt 0:00:39]} 17. Be3 {[%emt 0:00:02]} Qc7 {[%emt 0:02:10]} 18. Qa5 {[%emt 0:01:01]} Qxa5 {[%emt 0:00:41]} 19. Rxa5 {[%emt 0:00:01]} Bb7 {[%emt 0:00:03]} 20. Nd2 {[%emt 0:00:39]} Nc5 {[%emt 0:04:16]} 21. Bxc5 {[%emt 0:00:16]} dxc5 {[%emt 0:00:01]} 22. Nb3 {[%emt 0:00:08]} Bd8 {[%emt 0:00:06]} 23. Rxc5 {[%emt 0:00:25]} Re8 {[%emt 0:00:18]} 24. Na5 {[%emt 0:00:06]} Ba8 {[%emt 0:00:03]} 25. Bh3 {[%emt 0:00:14]} Bb6 {[%emt 0:00:06]} 26. Nb3 {[%emt 0:00:05]} Bxc5 {[%emt 0:00:39]} 27. Nxc5 {[%emt 0:00:01]} Rb4 {[%emt 0:00:04]} 28. Rc1 {[%emt 0:00:08]} a5 {[%emt 0:00:05]} 29. Bd7 {[%emt 0:00:09]} Rd8 {[%emt 0:00:05]} 30. Bb5 {[%emt 0:00:28]} h5 {[%emt 0:00:19]} 31. Ra1 {[%emt 0:00:08]} h4 {[%emt 0:00:08]} 32. gxh4 {[%emt 0:00:08]} a4 {[%emt 0:00:06]} 33. Nxa4 {[%emt 0:00:12]} Bxe4 {[%emt 0:00:05]} 34. Nc5 {[%emt 0:00:08]} Bf3 {[%emt 0:01:14]} 35. h3 {[%emt 0:00:13]} Rd2 {[%emt 0:00:00]} 36. Nd7 {[%emt 0:00:10]} Rxb5 {[%emt 0:00:00]} 0-1

[Event "Final GP Rapid TOP 16 2019"]
[Site "Khanty-Mansijsk"]
[Date "2019.12.01"]
[Round "3.5"]
[White "Voit, Daria"]
[Black "Golubov, Saveliy"]
[Result "0-1"]
[ECO "E61"]
[WhiteElo "2336"]
[BlackElo "2469"]
[Annotator "ChessBase"]
[PlyCount "100"]
[EventDate "2019.12.01"]
[EventType "tourn"]
[EventCountry "RUS"]
[SourceTitle "playchess.com"]
[Source "ChessBase"]
[SourceQuality "1"]
[TimeControl "900+10"]

1. d4 {[%emt 0:00:00]} g6 {[%emt 0:00:00]} 2. c4 {[%emt 0:00:04]} Bg7 {[%emt 0:00:00]} 3. Nc3 {[%emt 0:00:03]} Nf6 {[%emt 0:00:02]} 4. Nf3 {[%emt 0:00:03]} O-O {[%emt 0:00:03]} 5. Bg5 {[%emt 0:00:02]} h6 {[%emt 0:02:33]} 6. Bh4 {[%emt 0:00:02]} d6 {[%emt 0:00:29]} 7. e3 {[%emt 0:00:03]} g5 {[%emt 0:00:30]} 8. Bg3 {[%emt 0:00:02]} Nh5 {[%emt 0:00:09]} 9. Be2 {[%emt 0:00:03]} c5 {[%emt 0:01:45]} 10. dxc5 {[%emt 0:00:54]} Nxg3 {[%emt 0:01:08]} 11. hxg3 {[%emt 0:00:02]} dxc5 {[%emt 0:00:13]} 12. Qc2 {[%emt 0:00:02]} f5 {[%emt 0:01:28]} 13. g4 {[%emt 0:04:44]} Nc6 {[%emt 0:01:28]} 14. a3 {[%emt 0:00:39]} fxg4 {[%emt 0:02:07]} 15. Nxg5 {[%emt 0:00:39]} Bf5 {[%emt 0:00:02]} 16. Nge4 {[%emt 0:00:26]} Qa5 {[%emt 0:01:38]} 17. Kf1 {[%emt 0:02:34]} Rad8 {[%emt 0:00:35]} 18. Rh4 {[%emt 0:00:59]} g3 {[%emt 0:00:43]} 19. f3 {[%emt 0:01:23]} Ne5 {[%emt 0:01:26]} 20. Qb3 {[%emt 0:02:24]} e6 {[%emt 0:00:01]} 21. Nxg3 {[%emt 0:00:27]} Bd3 {[%emt 0:00:01]} 22. Bxd3 {[%emt 0:01:55]} Rxd3 {[%emt 0:00:55]} 23. Qxb7 {[%emt 0:00:32]} Rxe3 {[%emt 0:00:17]} 24. Re1 {[%emt 0:00:36]} Rxe1+ {[%emt 0:00:50]} 25. Kxe1 {[%emt 0:00:02]} Qd8 {[%emt 0:00:01]} 26. Qe4 {[%emt 0:00:20]} Qg5 {[%emt 0:00:20]} 27. Nce2 {[%emt 0:00:08]} Rd8 {[%emt 0:00:13]} 28. Kf2 {[%emt 0:00:14]} Rd1 {[%emt 0:00:16]} 29. Rg4 {[%emt 0:00:13]} Nxg4+ {[%emt 0:00:15]} 30. fxg4 {[%emt 0:00:03]} Qf6+ {[%emt 0:00:08]} 31. Ke3 {[%emt 0:00:07]} Rd8 {[%emt 0:00:14]} 32. Nh5 {[%emt 0:00:11]} Qe5 {[%emt 0:00:09]} 33. Nef4 {[%emt 0:00:10]} Qxe4+ {[%emt 0:00:07]} 34. Kxe4 {[%emt 0:00:02]} Bxb2 {[%emt 0:00:07]} 35. Nxe6 {[%emt 0:00:04]} Rd2 {[%emt 0:00:02]} 36. Nxc5 {[%emt 0:00:14]} Rd4+ {[%emt 0:00:05]} 37. Kf5 {[%emt 0:00:11]} Rxc4 {[%emt 0:00:02]} 38. Nd3 {[%emt 0:00:11]} Ba1 {[%emt 0:00:16]} 39. Nb4 {[%emt 0:00:21]} Rc5+ {[%emt 0:00:09]} 40. Kg6 {[%emt 0:00:08]} a5 {[%emt 0:00:14]} 41. Nd3 {[%emt 0:00:06]} Rc6+ {[%emt 0:00:01]} 42. Kf5 {[%emt 0:00:03]} Rd6 43. Ndf4 {[%emt 0:00:06]} Bb2 {[%emt 0:00:16]} 44. a4 {[%emt 0:00:02]} Kf7 {[%emt 0:00:06]} 45. Ng3 {[%emt 0:00:11]} Rd4 {[%emt 0:00:21]} 46. Ne4 {[%emt 0:00:19]} Rxa4 {[%emt 0:00:05]} 47. Nd3 {[%emt 0:00:06]} Bd4 {[%emt 0:00:13]} 48. Nd6+ {[%emt 0:00:09]} Kg8 {[%emt 0:00:19]} 49. Kg6 {[%emt 0:00:15]} Bg7 {[%emt 0:00:19]} 50. Nf2 {[%emt 0:00:11]} Rf4 {[%emt 0:00:07]} 0-1

[Event "Final GP Rapid TOP 16 2019"]
[Site "Khanty-Mansijsk"]
[Date "2019.12.01"]
[Round "3.6"]
[White "Nesterov, Arseniy"]
[Black "Sakaev, Konstantin"]
[Result "1/2-1/2"]
[ECO "D12"]
[WhiteElo "2482"]
[BlackElo "2596"]
[Annotator "ChessBase"]
[PlyCount "48"]
[EventDate "2019.12.01"]
[EventType "tourn"]
[EventCountry "RUS"]
[SourceTitle "playchess.com"]
[Source "ChessBase"]
[SourceQuality "1"]
[TimeControl "900+10"]

1. d4 {[%emt 0:00:00]} d5 {[%emt 0:00:00]} 2. c4 {[%emt 0:00:00]} c6 {[%emt 0:00:00]} 3. Nf3 {[%emt 0:00:00]} Nf6 {[%emt 0:00:00]} 4. e3 {[%emt 0:00:00]} Bf5 {[%emt 0:00:09]} 5. Nc3 {[%emt 0:00:10]} e6 {[%emt 0:00:01]} 6. Nh4 {[%emt 0:00:11]} Be4 {[%emt 0:00:05]} 7. f3 {[%emt 0:00:15]} Bg6 {[%emt 0:00:01]} 8. Qb3 {[%emt 0:00:34]} Qc7 {[%emt 0:00:02]} 9. Bd2 {[%emt 0:00:50]} Be7 {[%emt 0:00:48]} 10. O-O-O {[%emt 0:00:47]} dxc4 {[%emt 0:01:00]} 11. Bxc4 {[%emt 0:00:30]} a6 {[%emt 0:00:02]} 12. Nxg6 {[%emt 0:00:18]} hxg6 {[%emt 0:00:02]} 13. Kb1 {[%emt 0:01:16]} b5 {[%emt 0:02:58]} 14. Be2 {[%emt 0:00:30]} c5 {[%emt 0:01:56]} 15. dxc5 {[%emt 0:00:42]} Nbd7 {[%emt 0:00:01]} 16. f4 {[%emt 0:01:31]} Nxc5 {[%emt 0:00:15]} 17. Qc2 {[%emt 0:00:01]} O-O {[%emt 0:00:25]} 18. h4 {[%emt 0:01:17]} Rac8 {[%emt 0:02:01]} 19. Bf3 {[%emt 0:04:06]} Rfd8 {[%emt 0:01:00]} 20. Ne2 {[%emt 0:01:07]} Qb6 {[%emt 0:01:39]} 21. Bc3 {[%emt 0:00:52]} Na4 {[%emt 0:01:01]} 22. Rxd8+ {[%emt 0:00:11]} Qxd8 {[%emt 0:00:24]} 23. Rd1 {[%emt 0:01:14]} Qb6 {[%emt 0:02:34]} 24. Qd3 {[%emt 0:00:30]} Nxc3+ {[%emt 0:00:12]} 1/2-1/2

[Event "Final GP Rapid TOP 16 2019"]
[Site "Khanty-Mansijsk"]
[Date "2019.12.01"]
[Round "3.7"]
[White "Pridorozhni, Aleksei"]
[Black "Moiseenko, Vadim"]
[Result "0-1"]
[ECO "B02"]
[WhiteElo "2602"]
[BlackElo "2526"]
[Annotator "ChessBase"]
[PlyCount "84"]
[EventDate "2019.12.01"]
[EventType "tourn"]
[EventCountry "RUS"]
[SourceTitle "playchess.com"]
[Source "ChessBase"]
[SourceQuality "1"]
[TimeControl "900+10"]

1. e4 {[%emt 0:00:00]} c5 {[%emt 0:00:00]} 2. Nf3 {[%emt 0:00:00]} Nf6 {[%emt 0:00:01]} 3. Nc3 {[%emt 0:00:00]} d5 {[%emt 0:00:07]} 4. e5 {[%emt 0:00:49]} Nfd7 {[%emt 0:00:20]} 5. e6 {[%emt 0:01:36]} fxe6 {[%emt 0:00:01]} 6. d4 {[%emt 0:00:07]} Nc6 {[%emt 0:01:11]} 7. Bb5 {[%emt 0:00:35]} Qb6 {[%emt 0:01:04]} 8. dxc5 {[%emt 0:00:52]} Qxc5 {[%emt 0:00:23]} 9. O-O {[%emt 0:00:32]} a6 {[%emt 0:01:09]} 10. Bd3 {[%emt 0:01:06]} g6 {[%emt 0:01:13]} 11. Ng5 {[%emt 0:02:08]} Nf6 {[%emt 0:01:13]} 12. Nxh7 {[%emt 0:03:01]} Nxh7 {[%emt 0:01:13]} 13. Bxg6+ {[%emt 0:00:04]} Kd8 {[%emt 0:00:01]} 14. Qh5 {[%emt 0:00:15]} Qd4 {[%emt 0:00:17]} 15. Be3 {[%emt 0:00:30]} Qe5 {[%emt 0:00:25]} 16. Bb6+ {[%emt 0:00:05]} Kd7 {[%emt 0:00:05]} 17. Be8+ {[%emt 0:02:00]} Kd6 {[%emt 0:00:42]} 18. Qh3 {[%emt 0:03:04]} Bd7 {[%emt 0:04:38]} 19. Rfe1 {[%emt 0:00:48]} Ng5 {[%emt 0:00:35]} 20. Ne4+ {[%emt 0:00:04]} Nxe4 {[%emt 0:02:12]} 21. Qa3+ {[%emt 0:00:06]} Nb4 {[%emt 0:00:01]} 22. Qxb4+ {[%emt 0:00:09]} Kc6 {[%emt 0:00:01]} 23. Bxd7+ {[%emt 0:00:39]} Kxd7 {[%emt 0:00:00]} 24. Qa4+ {[%emt 0:00:03]} Kd6 {[%emt 0:00:05]} 25. Qb4+ {[%emt 0:00:13]} Kc6 {[%emt 0:00:21]} 26. g3 {[%emt 0:00:20]} Qd6 {[%emt 0:00:25]} 27. Qb3 {[%emt 0:00:05]} Nd2 {[%emt 0:00:58]} 28. Qc3+ {[%emt 0:00:08]} Kxb6 {[%emt 0:00:01]} 29. Qxd2 {[%emt 0:00:05]} Bg7 {[%emt 0:00:07]} 30. Re3 {[%emt 0:00:12]} Ka7 {[%emt 0:00:25]} 31. Rae1 {[%emt 0:00:03]} e5 {[%emt 0:00:02]} 32. Rd3 {[%emt 0:00:04]} d4 {[%emt 0:00:05]} 33. c3 {[%emt 0:00:09]} Bf6 {[%emt 0:00:25]} 34. a4 {[%emt 0:00:08]} Rh3 {[%emt 0:00:10]} 35. Re2 {[%emt 0:00:12]} Rah8 {[%emt 0:00:19]} 36. f3 {[%emt 0:00:01]} Qc6 {[%emt 0:00:18]} 37. a5 {[%emt 0:00:13]} Ka8 {[%emt 0:00:03]} 38. b4 {[%emt 0:00:08]} Qc4 {[%emt 0:00:08]} 39. cxd4 {[%emt 0:00:09]} exd4 {[%emt 0:00:09]} 40. f4 {[%emt 0:00:02]} Qb5 {[%emt 0:00:25]} 41. Rf3 {[%emt 0:00:05]} Rc8 {[%emt 0:00:10]} 42. Kg2 {[%emt 0:00:02]} Qh5 {[%emt 0:00:05]} 0-1

[Event "Final GP Rapid TOP 16 2019"]
[Site "Khanty-Mansijsk"]
[Date "2019.12.01"]
[Round "3.8"]
[White "Shaposhnikov, Evgeny"]
[Black "Kokarev, Dmitry"]
[Result "1/2-1/2"]
[ECO "D79"]
[WhiteElo "2568"]
[BlackElo "2606"]
[Annotator "ChessBase"]
[PlyCount "26"]
[EventDate "2019.12.01"]
[EventType "tourn"]
[EventCountry "RUS"]
[SourceTitle "playchess.com"]
[Source "ChessBase"]
[SourceQuality "1"]
[TimeControl "900+10"]

1. Nf3 {[%emt 0:00:00]} Nf6 {[%emt 0:00:00]} 2. c4 {[%emt 0:00:00]} g6 {[%emt 0:00:00]} 3. Nc3 {[%emt 0:00:00]} Bg7 {[%emt 0:00:00]} 4. g3 {[%emt 0:00:28]} c6 {[%emt 0:00:20]} 5. Bg2 {[%emt 0:00:22]} d5 {[%emt 0:00:04]} 6. cxd5 {[%emt 0:00:06]} cxd5 {[%emt 0:00:02]} 7. d4 {[%emt 0:00:23]} O-O {[%emt 0:00:51]} 8. O-O {[%emt 0:00:01]} Ne4 {[%emt 0:00:02]} 9. Nxe4 {[%emt 0:01:01]} dxe4 {[%emt 0:00:02]} 10. Ne5 {[%emt 0:00:47]} Qd5 {[%emt 0:00:14]} 11. Bf4 {[%emt 0:01:43]} f6 {[%emt 0:00:45]} 12. Nd3 {[%emt 0:00:16]} Nc6 {[%emt 0:00:15]} 13. Be3 {[%emt 0:01:00]} f5 {[%emt 0:01:29]} 1/2-1/2

[Event "Final GP Rapid TOP 16 2019"]
[Site "Khanty-Mansijsk"]
[Date "2019.12.01"]
[Round "4.1"]
[White "Ponkratov, Pavel"]
[Black "Kokarev, Dmitry"]
[Result "1/2-1/2"]
[ECO "B90"]
[WhiteElo "2632"]
[BlackElo "2606"]
[Annotator "ChessBase"]
[PlyCount "79"]
[EventDate "2019.12.01"]
[EventType "tourn"]
[EventCountry "RUS"]
[SourceTitle "playchess.com"]
[Source "ChessBase"]
[SourceQuality "1"]
[TimeControl "900+10"]

1. e4 {[%emt 0:00:00]} c5 {[%emt 0:00:00]} 2. Nf3 {[%emt 0:00:00]} d6 {[%emt 0:00:00]} 3. d4 {[%emt 0:00:00]} cxd4 {[%emt 0:00:00]} 4. Nxd4 {[%emt 0:00:00]} Nf6 {[%emt 0:00:00]} 5. Nc3 {[%emt 0:00:00]} a6 {[%emt 0:00:01]} 6. a4 {[%emt 0:00:08]} e5 {[%emt 0:00:03]} 7. Nf3 {[%emt 0:00:02]} Be7 {[%emt 0:00:03]} 8. Bg5 {[%emt 0:00:04]} Be6 {[%emt 0:00:05]} 9. Bxf6 {[%emt 0:00:07]} Bxf6 {[%emt 0:00:03]} 10. Nd5 {[%emt 0:00:01]} Nd7 {[%emt 0:00:02]} 11. Bc4 {[%emt 0:00:02]} Rc8 {[%emt 0:00:02]} 12. b3 {[%emt 0:00:02]} Nb6 {[%emt 0:02:24]} 13. Nxf6+ {[%emt 0:01:14]} Qxf6 {[%emt 0:00:02]} 14. Bxe6 {[%emt 0:00:01]} Qxe6 {[%emt 0:00:02]} 15. O-O {[%emt 0:00:02]} O-O {[%emt 0:00:06]} 16. Re1 {[%emt 0:00:02]} Rc6 {[%emt 0:01:18]} 17. a5 {[%emt 0:01:09]} Nd7 {[%emt 0:00:06]} 18. Nd2 {[%emt 0:00:00]} f5 {[%emt 0:00:23]} 19. exf5 {[%emt 0:00:41]} Qxf5 {[%emt 0:01:03]} 20. Ne4 {[%emt 0:00:02]} Nc5 {[%emt 0:00:14]} 21. Nxd6 {[%emt 0:02:32]} Qxf2+ {[%emt 0:00:46]} 22. Kh1 {[%emt 0:00:02]} Qd4 {[%emt 0:01:54]} 23. Nc4 {[%emt 0:00:05]} Qxd1 {[%emt 0:01:51]} 24. Raxd1 {[%emt 0:00:02]} e4 {[%emt 0:00:09]} 25. Kg1 {[%emt 0:00:17]} h6 {[%emt 0:00:26]} 26. Rd5 {[%emt 0:01:14]} Re8 {[%emt 0:00:44]} 27. Red1 {[%emt 0:00:53]} Re7 {[%emt 0:00:22]} 28. Re5 {[%emt 0:01:27]} Rxe5 {[%emt 0:01:10]} 29. Nxe5 {[%emt 0:00:02]} Rf6 {[%emt 0:00:54]} 30. h4 {[%emt 0:02:37]} Kh7 {[%emt 0:01:10]} 31. b4 {[%emt 0:01:08]} Na4 {[%emt 0:00:37]} 32. Re1 {[%emt 0:00:29]} Nc3 {[%emt 0:00:41]} 33. Nd7 {[%emt 0:01:35]} Rc6 {[%emt 0:00:37]} 34. h5 {[%emt 0:00:21]} Rd6 {[%emt 0:00:29]} 35. Nc5 {[%emt 0:00:11]} Rd4 {[%emt 0:00:24]} 36. Re3 {[%emt 0:03:26]} Nd5 {[%emt 0:00:01]} 37. Rxe4 {[%emt 0:00:36]} Rxe4 {[%emt 0:00:02]} 38. Nxe4 {[%emt 0:00:01]} Nxb4 {[%emt 0:00:01]} 39. Nc5 {[%emt 0:00:01]} Nxc2 {[%emt 0:00:02]} 40. Nxb7 {[%emt 0:00:01]} 1/2-1/2

[Event "Final GP Rapid TOP 16 2019"]
[Site "Khanty-Mansijsk"]
[Date "2019.12.01"]
[Round "4.3"]
[White "Sakaev, Konstantin"]
[Black "Pridorozhni, Aleksei"]
[Result "1/2-1/2"]
[ECO "A84"]
[WhiteElo "2596"]
[BlackElo "2602"]
[Annotator "ChessBase"]
[PlyCount "46"]
[EventDate "2019.12.01"]
[EventType "tourn"]
[EventCountry "RUS"]
[SourceTitle "playchess.com"]
[Source "ChessBase"]
[SourceQuality "1"]
[TimeControl "900+10"]

1. d4 {[%emt 0:00:00]} e6 {[%emt 0:00:00]} 2. c4 {[%emt 0:00:00]} f5 {[%emt 0:00:00]} 3. Nf3 {[%emt 0:00:00]} Nf6 {[%emt 0:00:00]} 4. g3 {[%emt 0:00:03]} b6 {[%emt 0:00:17]} 5. Bg2 {[%emt 0:00:03]} Bb7 {[%emt 0:00:01]} 6. O-O {[%emt 0:00:05]} a5 {[%emt 0:00:29]} 7. d5 {[%emt 0:01:52]} exd5 {[%emt 0:00:24]} 8. Nd4 {[%emt 0:00:15]} Nc6 {[%emt 0:00:37]} 9. cxd5 {[%emt 0:00:38]} Nxd4 {[%emt 0:00:03]} 10. Qxd4 {[%emt 0:00:01]} Bd6 {[%emt 0:01:14]} 11. Bf4 {[%emt 0:01:11]} Qe7 {[%emt 0:00:00]} 12. Bxd6 {[%emt 0:00:18]} Qxd6 {[%emt 0:00:00]} 13. Nc3 {[%emt 0:01:49]} Ba6 {[%emt 0:00:09]} 14. Bh3 {[%emt 0:03:04]} g6 {[%emt 0:01:19]} 15. Rfd1 {[%emt 0:00:22]} O-O {[%emt 0:00:26]} 16. Rac1 {[%emt 0:00:02]} Rae8 {[%emt 0:00:58]} 17. e3 {[%emt 0:00:01]} Ne4 {[%emt 0:00:05]} 18. Nxe4 {[%emt 0:00:40]} Rxe4 {[%emt 0:00:03]} 19. Qc3 {[%emt 0:00:27]} Rc4 {[%emt 0:00:05]} 20. Qd2 {[%emt 0:00:04]} Rxc1 {[%emt 0:00:03]} 21. Qxc1 {[%emt 0:00:16]} Be2 {[%emt 0:00:11]} 22. Rd4 {[%emt 0:00:20]} Bf3 {[%emt 0:00:03]} 23. Bg2 {[%emt 0:00:04]} Bxg2 {[%emt 0:00:06]} 1/2-1/2

[Event "Final GP Rapid TOP 16 2019"]
[Site "Khanty-Mansijsk"]
[Date "2019.12.01"]
[Round "4.4"]
[White "Golubov, Saveliy"]
[Black "Nesterov, Arseniy"]
[Result "1-0"]
[ECO "D02"]
[WhiteElo "2469"]
[BlackElo "2482"]
[Annotator "ChessBase"]
[PlyCount "91"]
[EventDate "2019.12.01"]
[EventType "tourn"]
[EventCountry "RUS"]
[SourceTitle "playchess.com"]
[Source "ChessBase"]
[SourceQuality "1"]
[TimeControl "900+10"]

1. d4 {[%emt 0:00:00]} d5 {[%emt 0:00:00]} 2. Nf3 {[%emt 0:00:00]} Nf6 {[%emt 0:00:00]} 3. c3 {[%emt 0:00:00]} e6 {[%emt 0:00:06]} 4. Bf4 {[%emt 0:00:00]} Bd6 {[%emt 0:00:03]} 5. Bg3 {[%emt 0:00:00]} c5 {[%emt 0:00:03]} 6. e3 {[%emt 0:00:03]} Qc7 {[%emt 0:00:05]} 7. dxc5 {[%emt 0:00:03]} Qxc5 {[%emt 0:00:09]} 8. b4 {[%emt 0:00:14]} Qc7 {[%emt 0:00:09]} 9. Nbd2 {[%emt 0:00:05]} O-O {[%emt 0:01:26]} 10. Rc1 {[%emt 0:01:32]} Bxg3 {[%emt 0:03:30]} 11. hxg3 {[%emt 0:00:03]} Qe7 {[%emt 0:00:24]} 12. Bd3 {[%emt 0:01:54]} e5 {[%emt 0:02:35]} 13. e4 {[%emt 0:00:01]} a5 {[%emt 0:01:44]} 14. a3 {[%emt 0:01:45]} axb4 {[%emt 0:00:20]} 15. axb4 {[%emt 0:00:02]} h6 {[%emt 0:02:18]} 16. Qe2 {[%emt 0:01:28]} Re8 {[%emt 0:01:26]} 17. O-O {[%emt 0:01:07]} Ra2 {[%emt 0:01:56]} 18. exd5 {[%emt 0:01:44]} e4 {[%emt 0:00:06]} 19. Bc4 {[%emt 0:00:02]} Rb2 {[%emt 0:00:24]} 20. Nd4 {[%emt 0:00:27]} Ng4 {[%emt 0:00:30]} 21. Rb1 {[%emt 0:03:37]} Rxb1 {[%emt 0:00:01]} 22. Rxb1 {[%emt 0:00:01]} Qg5 {[%emt 0:00:15]} 23. f3 {[%emt 0:00:57]} Nf6 {[%emt 0:00:49]} 24. Nxe4 {[%emt 0:00:16]} Nxe4 {[%emt 0:00:01]} 25. fxe4 {[%emt 0:00:02]} Nd7 {[%emt 0:00:17]} 26. Bb5 {[%emt 0:00:28]} Qxg3 {[%emt 0:00:13]} 27. Qf3 {[%emt 0:00:42]} Qg6 {[%emt 0:00:19]} 28. Bxd7 {[%emt 0:02:07]} Bxd7 {[%emt 0:00:01]} 29. Re1 {[%emt 0:00:01]} Re5 {[%emt 0:00:00]} 30. Re3 {[%emt 0:00:20]} h5 {[%emt 0:00:13]} 31. c4 {[%emt 0:00:26]} Qb6 {[%emt 0:00:28]} 32. Nc2 {[%emt 0:00:01]} Ba4 {[%emt 0:00:06]} 33. c5 {[%emt 0:00:00]} Qb5 {[%emt 0:00:09]} 34. Qe2 {[%emt 0:00:01]} Qe8 {[%emt 0:00:19]} 35. Nd4 {[%emt 0:00:08]} Bd7 {[%emt 0:00:02]} 36. b5 {[%emt 0:00:06]} Bg4 {[%emt 0:00:05]} 37. Qd3 {[%emt 0:00:17]} f5 {[%emt 0:00:03]} 38. c6 {[%emt 0:00:21]} fxe4 {[%emt 0:00:10]} 39. Qc4 {[%emt 0:00:10]} bxc6 {[%emt 0:00:27]} 40. Nxc6 {[%emt 0:00:36]} Rf5 {[%emt 0:00:12]} 41. Rxe4 {[%emt 0:00:23]} Qf7 {[%emt 0:00:01]} 42. Ne7+ {[%emt 0:00:04]} Kh7 {[%emt 0:00:01]} 43. Nxf5 {[%emt 0:00:05]} Bxf5 {[%emt 0:00:01]} 44. Rf4 {[%emt 0:00:13]} Qg6 {[%emt 0:00:01]} 45. Qd4 {[%emt 0:00:09]} Bg4 {[%emt 0:00:34]} 46. Qe4 {[%emt 0:00:02]} 1-0